[Event "Titled Tuesday Blitz July 25 Early 2023"]
[White "Salman, Pavel"]
[Black "Weetik, Vjacheslav"]
[WhiteFideId "24153753"]
[BlackFideId "4153472"]
[WhiteElo "2510"]
[BlackElo "2688"]
[Result "1-0"]
[Round "8"]
[TimeControl "180+2"]
[Date "2023.07.25"]
[WhiteClock "0:00:22"]
[BlackClock "0:00:00"]
[Board "56"]

1. d4 {[%clk 0:02:53]}  Nf6 {[%clk 0:02:59]} 2. Nc3 {[%clk 0:02:54]}  d5 {[%clk 0:02:59]} 3. Bf4 {[%clk 0:02:54]}  c5 {[%clk 0:03:00]} 4. e4 {[%clk 0:02:55]}  Nxe4 {[%clk 0:02:58]} 5. Nxe4 {[%clk 0:02:54]}  dxe4 {[%clk 0:02:59]} 6. dxc5 {[%clk 0:02:54]}  Qa5+ {[%clk 0:02:59]} 7. c3 {[%clk 0:02:55]}  Qxc5 {[%clk 0:02:59]} 8. Qa4+ {[%clk 0:02:55]}  Nc6 {[%clk 0:03:00]} 9. Qxe4 {[%clk 0:02:56]}  g6 {[%clk 0:03:00]} 10. Qc4 {[%clk 0:02:43]}  Qb6 {[%clk 0:02:54]} 11. Qb5 {[%clk 0:02:43]}  Bg7 {[%clk 0:02:47]} 12. Qxb6 {[%clk 0:02:42]}  axb6 {[%clk 0:02:47]} 13. Bb5 {[%clk 0:02:37]}  Be6 {[%clk 0:02:38]} 14. a4 {[%clk 0:02:36]}  O-O {[%clk 0:02:37]} 15. Nf3 {[%clk 0:02:35]}  Na5 {[%clk 0:02:21]} 16. O-O {[%clk 0:02:33]}  Rfc8 {[%clk 0:02:18]} 17. Rfe1 {[%clk 0:02:30]}  Nb3 {[%clk 0:02:11]} 18. Ra3 {[%clk 0:02:22]}  Nc5 {[%clk 0:02:09]} 19. h3 {[%clk 0:02:15]}  h6 {[%clk 0:02:07]} 20. Be5 {[%clk 0:02:06]}  Bf8 {[%clk 0:01:46]} 21. Nd4 {[%clk 0:01:48]}  Bd7 {[%clk 0:01:39]} 22. Bxd7 {[%clk 0:01:33]}  Nxd7 {[%clk 0:01:39]} 23. Nb5 {[%clk 0:01:32]}  Nc5 {[%clk 0:01:07]} 24. Bd4 {[%clk 0:01:23]}  Nd3 {[%clk 0:00:53]} 25. Re2 {[%clk 0:01:15]}  e5 {[%clk 0:00:52]} 26. Bxb6 {[%clk 0:00:55]}  Bxa3 {[%clk 0:00:50]} 27. Nxa3 {[%clk 0:00:56]}  Rxa4 {[%clk 0:00:47]} 28. Nb5 {[%clk 0:00:53]}  f6 {[%clk 0:00:22]} 29. b4 {[%clk 0:00:46]}  Ra1+ {[%clk 0:00:17]} 30. Kh2 {[%clk 0:00:46]}  Rca8 {[%clk 0:00:11]} 31. Ba5 {[%clk 0:00:41]}  b6 {[%clk 0:00:12]} 32. Bxb6 {[%clk 0:00:41]}  R8a2 {[%clk 0:00:12]} 33. Rxa2 {[%clk 0:00:41]}  Rxa2 {[%clk 0:00:13]} 34. Kg3 {[%clk 0:00:41]}  f5 {[%clk 0:00:10]} 35. h4 {[%clk 0:00:37]}  e4 {[%clk 0:00:05]} 36. Be3 {[%clk 0:00:34]}  Kg7 {[%clk 0:00:03]} 37. Nd4 {[%clk 0:00:33]}  Ra3 {[%clk 0:00:02]} 38. b5 {[%clk 0:00:25]}  Kh7 {[%clk 0:00:00]} 39. b6 {[%clk 0:00:22]} 1-0


[Site "https://www.chess.com"]

[Event "Titled Tuesday Blitz July 25 Early 2023"]
[White "Mohammad Fahad, Rahman"]
[Black "Attacker_2006"]
[WhiteFideId "10207791"]
[WhiteElo "2681"]
[BlackElo "2441"]
[Result "0-1"]
[Round "8"]
[TimeControl "180+2"]
[Date "2023.07.25"]
[WhiteClock "0:00:04"]
[BlackClock "0:00:03"]
[Board "57"]

1. d4 {[%clk 0:03:00]}  Nf6 {[%clk 0:02:59]} 2. c4 {[%clk 0:03:01]}  e6 {[%clk 0:02:59]} 3. Nf3 {[%clk 0:03:01]}  d5 {[%clk 0:02:59]} 4. Nc3 {[%clk 0:03:01]}  Bb4 {[%clk 0:02:58]} 5. Bg5 {[%clk 0:02:59]}  dxc4 {[%clk 0:02:58]} 6. e4 {[%clk 0:02:55]}  c5 {[%clk 0:02:58]} 7. d5 {[%clk 0:02:36]}  exd5 {[%clk 0:02:35]} 8. e5 {[%clk 0:02:19]}  Be6 {[%clk 0:02:20]} 9. exf6 {[%clk 0:02:15]}  gxf6 {[%clk 0:02:20]} 10. Bd2 {[%clk 0:02:15]}  Nc6 {[%clk 0:02:15]} 11. a3 {[%clk 0:01:31]}  Ba5 {[%clk 0:02:12]} 12. Ne2 {[%clk 0:01:25]}  Bc7 {[%clk 0:01:49]} 13. Nf4 {[%clk 0:01:19]}  Qe7 {[%clk 0:01:42]} 14. Nxe6 {[%clk 0:01:01]}  Qxe6+ {[%clk 0:01:40]} 15. Qe2 {[%clk 0:01:02]}  O-O-O {[%clk 0:01:36]} 16. O-O-O {[%clk 0:00:46]}  b5 {[%clk 0:01:18]} 17. Re1 {[%clk 0:00:37]}  Qd7 {[%clk 0:01:08]} 18. Qd1 {[%clk 0:00:17]}  a5 {[%clk 0:00:59]} 19. g3 {[%clk 0:00:16]}  b4 {[%clk 0:00:59]} 20. h4 {[%clk 0:00:14]}  Kb8 {[%clk 0:00:54]} 21. Qa4 {[%clk 0:00:13]}  Nd4 {[%clk 0:00:48]} 22. Qxd7 {[%clk 0:00:13]}  Nb3+ {[%clk 0:00:47]} 23. Kc2 {[%clk 0:00:13]}  Rxd7 {[%clk 0:00:47]} 24. Bh3 {[%clk 0:00:13]}  Rdd8 {[%clk 0:00:46]} 25. axb4 {[%clk 0:00:14]}  axb4 {[%clk 0:00:43]} 26. Bh6 {[%clk 0:00:12]}  d4 {[%clk 0:00:42]} 27. Bg7 {[%clk 0:00:12]}  d3+ {[%clk 0:00:43]} 28. Kb1 {[%clk 0:00:11]}  c3 {[%clk 0:00:43]} 29. Bxf6 {[%clk 0:00:11]}  c2+ {[%clk 0:00:42]} 30. Ka2 {[%clk 0:00:11]}  c4 {[%clk 0:00:42]} 31. Re4 {[%clk 0:00:08]}  d2 {[%clk 0:00:20]} 32. Nxd2 {[%clk 0:00:07]}  Nxd2 {[%clk 0:00:20]} 33. Rg4 {[%clk 0:00:02]}  b3+ {[%clk 0:00:21]} 34. Ka3 {[%clk 0:00:02]}  Kb7 {[%clk 0:00:17]} 35. Bc3 {[%clk 0:00:02]}  Bd6+ {[%clk 0:00:16]} 36. Ka4 {[%clk 0:00:02]}  Nb1 {[%clk 0:00:02]} 37. Bd4 {[%clk 0:00:02]}  Ra8+ {[%clk 0:00:02]} 38. Kb5 {[%clk 0:00:03]}  Nd2 {[%clk 0:00:01]} 39. Bg2+ {[%clk 0:00:03]}  Kc7 {[%clk 0:00:02]} 40. Bxa8 {[%clk 0:00:04]}  Rb8+ {[%clk 0:00:03]} 41. Ka4 {[%clk 0:00:03]}  Rxa8+ {[%clk 0:00:03]} 42. Kb5 {[%clk 0:00:04]}  Rb8+ {[%clk 0:00:04]} 43. Ka5 {[%clk 0:00:04]}  Bb4+ {[%clk 0:00:04]} 44. Ka4 {[%clk 0:00:04]}  Bd6 {[%clk 0:00:03]} 45. Rg7 {[%clk 0:00:04]}  Kc6 {[%clk 0:00:03]} 46. Rxf7 {[%clk 0:00:04]}  Ra8+ {[%clk 0:00:04]} 47. Ra7 {[%clk 0:00:05]}  Re8 {[%clk 0:00:04]} 48. Ra6+ {[%clk 0:00:05]}  Kd5 {[%clk 0:00:04]} 49. Be3 {[%clk 0:00:05]}  Ne4 {[%clk 0:00:03]} 50. Ra5+ {[%clk 0:00:05]}  Kc6 {[%clk 0:00:03]} 51. Ra6+ {[%clk 0:00:05]}  Kc7 {[%clk 0:00:04]} 52. Bb6+ {[%clk 0:00:05]}  Kb7 {[%clk 0:00:03]} 53. Ra5 {[%clk 0:00:03]}  Kxb6 {[%clk 0:00:03]} 54. Rd5 {[%clk 0:00:04]}  Ra8+ {[%clk 0:00:02]} 55. Ra5 {[%clk 0:00:04]}  Rxa5# {[%clk 0:00:03]} 0-1


[Site "https://www.chess.com"]

[Event "Titled Tuesday Blitz July 25 Early 2023"]
[White "Eggleston, Thomas A"]
[Black "Haug, Havard"]
[WhiteFideId "412139"]
[BlackFideId "1547887"]
[WhiteElo "2423"]
[BlackElo "2659"]
[Result "0-1"]
[Round "8"]
[TimeControl "180+2"]
[Date "2023.07.25"]
[WhiteClock "0:00:00"]
[BlackClock "0:00:59"]
[Board "58"]

1. e4 {[%clk 0:03:00]}  c6 {[%clk 0:02:54]} 2. Nf3 {[%clk 0:02:59]}  d5 {[%clk 0:02:55]} 3. Nc3 {[%clk 0:03:00]}  dxe4 {[%clk 0:02:54]} 4. Nxe4 {[%clk 0:03:00]}  Nf6 {[%clk 0:02:54]} 5. Nxf6+ {[%clk 0:03:00]}  exf6 {[%clk 0:02:54]} 6. d4 {[%clk 0:03:00]}  Bd6 {[%clk 0:02:54]} 7. Bc4 {[%clk 0:02:59]}  O-O {[%clk 0:02:55]} 8. O-O {[%clk 0:02:59]}  Re8 {[%clk 0:02:55]} 9. h3 {[%clk 0:02:58]}  Nd7 {[%clk 0:02:55]} 10. Bb3 {[%clk 0:02:55]}  Nf8 {[%clk 0:02:55]} 11. c4 {[%clk 0:02:55]}  Be6 {[%clk 0:02:54]} 12. Be3 {[%clk 0:02:52]}  Qc8 {[%clk 0:02:32]} 13. d5 {[%clk 0:01:48]}  cxd5 {[%clk 0:02:28]} 14. cxd5 {[%clk 0:01:47]}  Bxh3 {[%clk 0:02:23]} 15. Rc1 {[%clk 0:01:46]}  Qg4 {[%clk 0:02:18]} 16. Ne1 {[%clk 0:01:43]}  Qh4 {[%clk 0:01:47]} 17. Qf3 {[%clk 0:00:55]}  Bg4 {[%clk 0:01:44]} 18. g3 {[%clk 0:00:55]}  Qh5 {[%clk 0:01:23]} 19. Qg2 {[%clk 0:00:52]}  Be2 {[%clk 0:01:21]} 20. Rc4 {[%clk 0:00:31]}  Bxc4 {[%clk 0:01:14]} 21. Bxc4 {[%clk 0:00:31]}  Rac8 {[%clk 0:01:13]} 22. Bd3 {[%clk 0:00:29]}  Ng6 {[%clk 0:01:12]} 23. Nf3 {[%clk 0:00:21]}  Ne5 {[%clk 0:01:10]} 24. Nxe5 {[%clk 0:00:15]}  Bxe5 {[%clk 0:01:07]} 25. g4 {[%clk 0:00:14]}  Qh4 {[%clk 0:01:04]} 26. f4 {[%clk 0:00:14]}  Bc7 {[%clk 0:01:02]} 27. Bf2 {[%clk 0:00:13]}  Bb6 {[%clk 0:01:02]} 28. Bxb6 {[%clk 0:00:11]}  axb6 {[%clk 0:01:03]} 29. Bf5 {[%clk 0:00:09]}  Rcd8 {[%clk 0:01:00]} 30. Rd1 {[%clk 0:00:09]}  Re1+ {[%clk 0:01:00]} 31. Rxe1 {[%clk 0:00:08]}  Qxe1+ {[%clk 0:01:01]} 32. Kh2 {[%clk 0:00:09]}  Qe3 {[%clk 0:01:00]} 33. Be4 {[%clk 0:00:07]}  Qxf4+ {[%clk 0:01:00]} 34. Kh1 {[%clk 0:00:07]}  Re8 {[%clk 0:00:59]} 35. d6 {[%clk 0:00:06]}  Qxe4 {[%clk 0:00:58]} 36. d7 {[%clk 0:00:06]}  Qxg2+ {[%clk 0:00:58]} 37. Kxg2 {[%clk 0:00:00]}  Rd8 {[%clk 0:00:59]} 0-1


[Site "https://www.chess.com"]

[Event "Titled Tuesday Blitz July 25 Early 2023"]
[White "Gharibyan, Mamikon"]
[Black "Khamdamova, Afruza"]
[WhiteFideId "13308300"]
[BlackFideId "14210444"]
[WhiteElo "2787"]
[BlackElo "2519"]
[Result "1/2-1/2"]
[Round "8"]
[TimeControl "180+2"]
[Date "2023.07.25"]
[WhiteClock "0:00:03"]
[BlackClock "0:00:02"]
[Board "62"]

1. e4 {[%clk 0:03:00]}  e5 {[%clk 0:02:56]} 2. Nf3 {[%clk 0:03:00]}  Nc6 {[%clk 0:02:56]} 3. Bb5 {[%clk 0:03:01]}  a6 {[%clk 0:02:56]} 4. Ba4 {[%clk 0:03:01]}  Nf6 {[%clk 0:02:54]} 5. d3 {[%clk 0:03:01]}  b5 {[%clk 0:02:53]} 6. Bb3 {[%clk 0:03:01]}  Be7 {[%clk 0:02:53]} 7. a4 {[%clk 0:03:00]}  Bb7 {[%clk 0:02:52]} 8. Nc3 {[%clk 0:02:57]}  b4 {[%clk 0:02:47]} 9. Nd5 {[%clk 0:02:57]}  O-O {[%clk 0:02:46]} 10. a5 {[%clk 0:02:56]}  Nd4 {[%clk 0:02:44]} 11. Nxe7+ {[%clk 0:02:49]}  Qxe7 {[%clk 0:02:44]} 12. Nxd4 {[%clk 0:02:49]}  exd4 {[%clk 0:02:45]} 13. O-O {[%clk 0:02:50]}  h6 {[%clk 0:02:29]} 14. Re1 {[%clk 0:02:48]}  Rfe8 {[%clk 0:02:24]} 15. e5 {[%clk 0:02:44]}  Nd5 {[%clk 0:02:21]} 16. Qg4 {[%clk 0:02:43]}  Qe6 {[%clk 0:02:17]} 17. Qxd4 {[%clk 0:02:41]}  d6 {[%clk 0:02:05]} 18. Bd2 {[%clk 0:02:14]}  dxe5 {[%clk 0:02:02]} 19. Qc5 {[%clk 0:02:12]}  Rad8 {[%clk 0:01:49]} 20. Bxd5 {[%clk 0:02:00]}  Bxd5 {[%clk 0:01:40]} 21. f3 {[%clk 0:01:45]}  b3 {[%clk 0:01:34]} 22. cxb3 {[%clk 0:01:41]}  Bxb3 {[%clk 0:01:33]} 23. Bc3 {[%clk 0:01:42]}  f6 {[%clk 0:01:31]} 24. d4 {[%clk 0:01:39]}  Qd6 {[%clk 0:01:22]} 25. Qa3 {[%clk 0:01:13]}  Qxa3 {[%clk 0:01:12]} 26. Rxa3 {[%clk 0:01:12]}  exd4 {[%clk 0:01:04]} 27. Rxe8+ {[%clk 0:01:04]}  Rxe8 {[%clk 0:01:04]} 28. Rxb3 {[%clk 0:00:56]}  dxc3 {[%clk 0:01:03]} 29. Rxc3 {[%clk 0:00:57]}  Re5 {[%clk 0:00:58]} 30. b4 {[%clk 0:00:56]}  Rb5 {[%clk 0:00:34]} 31. Rxc7 {[%clk 0:00:43]}  Rxb4 {[%clk 0:00:34]} 32. Rc6 {[%clk 0:00:44]}  Kh7 {[%clk 0:00:28]} 33. Rxa6 {[%clk 0:00:40]}  Rb2 {[%clk 0:00:28]} 34. Rc6 {[%clk 0:00:38]}  Ra2 {[%clk 0:00:27]} 35. a6 {[%clk 0:00:36]}  h5 {[%clk 0:00:25]} 36. h4 {[%clk 0:00:33]}  Kg6 {[%clk 0:00:25]} 37. Kh2 {[%clk 0:00:33]}  Kf5 {[%clk 0:00:24]} 38. Kh3 {[%clk 0:00:26]}  g6 {[%clk 0:00:21]} 39. g4+ {[%clk 0:00:21]}  hxg4+ {[%clk 0:00:20]} 40. fxg4+ {[%clk 0:00:22]}  Ke5 {[%clk 0:00:20]} 41. h5 {[%clk 0:00:22]}  gxh5 {[%clk 0:00:17]} 42. gxh5 {[%clk 0:00:23]}  Kf5 {[%clk 0:00:17]} 43. Rc5+ {[%clk 0:00:20]}  Kf4 {[%clk 0:00:16]} 44. Rc6 {[%clk 0:00:12]}  Kg5 {[%clk 0:00:15]} 45. Kg3 {[%clk 0:00:12]}  Ra3+ {[%clk 0:00:14]} 46. Kf2 {[%clk 0:00:12]}  Kxh5 {[%clk 0:00:13]} 47. Ke2 {[%clk 0:00:09]}  Kg5 {[%clk 0:00:12]} 48. Kd2 {[%clk 0:00:09]}  f5 {[%clk 0:00:12]} 49. Kc2 {[%clk 0:00:09]}  f4 {[%clk 0:00:12]} 50. Kb2 {[%clk 0:00:09]}  Ra5 {[%clk 0:00:12]} 51. Kb3 {[%clk 0:00:08]}  f3 {[%clk 0:00:12]} 52. Kb4 {[%clk 0:00:08]}  Ra1 {[%clk 0:00:11]} 53. Rc5+ {[%clk 0:00:04]}  Kg4 {[%clk 0:00:11]} 54. Rc4+ {[%clk 0:00:04]}  Kg3 {[%clk 0:00:10]} 55. Rc6 {[%clk 0:00:03]}  f2 {[%clk 0:00:09]} 56. Rg6+ {[%clk 0:00:03]}  Kf3 {[%clk 0:00:09]} 57. Rf6+ {[%clk 0:00:03]}  Ke3 {[%clk 0:00:09]} 58. Kb5 {[%clk 0:00:03]}  Rb1+ {[%clk 0:00:05]} 59. Kc6 {[%clk 0:00:03]}  Ra1 {[%clk 0:00:01]} 60. Kb7 {[%clk 0:00:03]}  Rb1+ {[%clk 0:00:01]} 61. Kc7 {[%clk 0:00:02]}  f1=Q {[%clk 0:00:01]} 62. Rxf1 {[%clk 0:00:02]}  Rxf1 {[%clk 0:00:01]} 63. a7 {[%clk 0:00:03]}  Rf7+ {[%clk 0:00:02]} 64. Kb8 {[%clk 0:00:03]}  Rxa7 {[%clk 0:00:02]} 65. Kxa7 {[%clk 0:00:03]} 1/2-1/2


[Site "https://www.chess.com"]

[Event "Titled Tuesday Blitz July 25 Early 2023"]
[White "Taboas Rodriguez, Daniel"]
[Black "Bryakin, Mikhail"]
[WhiteFideId "2208466"]
[BlackFideId "4165314"]
[WhiteElo "2501"]
[BlackElo "2728"]
[Result "0-1"]
[Round "8"]
[TimeControl "180+2"]
[Date "2023.07.25"]
[WhiteClock "0:00:06"]
[BlackClock "0:01:34"]
[Board "68"]

1. d4 {[%clk 0:02:59]}  Nf6 {[%clk 0:02:57]} 2. Nf3 {[%clk 0:02:59]}  d6 {[%clk 0:02:58]} 3. c4 {[%clk 0:02:59]}  g6 {[%clk 0:02:56]} 4. Nc3 {[%clk 0:02:59]}  Bg7 {[%clk 0:02:56]} 5. e4 {[%clk 0:02:59]}  O-O {[%clk 0:02:57]} 6. Be2 {[%clk 0:03:00]}  c5 {[%clk 0:02:55]} 7. d5 {[%clk 0:03:00]}  e6 {[%clk 0:02:56]} 8. O-O {[%clk 0:03:00]}  exd5 {[%clk 0:02:56]} 9. exd5 {[%clk 0:03:01]}  Bg4 {[%clk 0:02:55]} 10. h3 {[%clk 0:02:59]}  Bxf3 {[%clk 0:02:55]} 11. Bxf3 {[%clk 0:03:00]}  Nbd7 {[%clk 0:02:55]} 12. Bf4 {[%clk 0:03:00]}  Ne5 {[%clk 0:02:54]} 13. Be2 {[%clk 0:02:52]}  Nfd7 {[%clk 0:02:51]} 14. Qd2 {[%clk 0:02:51]}  f5 {[%clk 0:02:50]} 15. Be3 {[%clk 0:02:42]}  a6 {[%clk 0:02:50]} 16. f4 {[%clk 0:02:42]}  Nf7 {[%clk 0:02:47]} 17. Bf2 {[%clk 0:02:41]}  Re8 {[%clk 0:02:46]} 18. Rfe1 {[%clk 0:02:40]}  Qa5 {[%clk 0:02:43]} 19. Bd3 {[%clk 0:02:33]}  Bd4 {[%clk 0:02:36]} 20. Re6 {[%clk 0:02:30]}  Nf8 {[%clk 0:02:17]} 21. Ree1 {[%clk 0:02:19]}  b5 {[%clk 0:02:13]} 22. Rxe8 {[%clk 0:01:49]}  Rxe8 {[%clk 0:02:12]} 23. Re1 {[%clk 0:01:49]}  Rxe1+ {[%clk 0:02:06]} 24. Qxe1 {[%clk 0:01:49]}  Bxf2+ {[%clk 0:02:05]} 25. Kxf2 {[%clk 0:01:30]}  b4 {[%clk 0:02:06]} 26. Ne2 {[%clk 0:01:16]}  Qxa2 {[%clk 0:02:04]} 27. Qc1 {[%clk 0:01:17]}  a5 {[%clk 0:02:01]} 28. Bb1 {[%clk 0:01:16]}  Qa1 {[%clk 0:02:01]} 29. b3 {[%clk 0:01:15]}  a4 {[%clk 0:01:59]} 30. bxa4 {[%clk 0:01:15]}  Qxa4 {[%clk 0:01:59]} 31. g4 {[%clk 0:01:16]}  fxg4 {[%clk 0:01:55]} 32. hxg4 {[%clk 0:01:16]}  Qa1 {[%clk 0:01:55]} 33. f5 {[%clk 0:01:02]}  Ne5 {[%clk 0:01:49]} 34. fxg6 {[%clk 0:00:58]}  hxg6 {[%clk 0:01:49]} 35. g5 {[%clk 0:00:46]}  Nxc4 {[%clk 0:01:48]} 36. Nf4 {[%clk 0:00:17]}  Qd4+ {[%clk 0:01:47]} 37. Kg3 {[%clk 0:00:16]}  Ne5 {[%clk 0:01:47]} 38. Qe1 {[%clk 0:00:10]}  b3 {[%clk 0:01:35]} 39. Qa5 {[%clk 0:00:06]}  Qe3+ {[%clk 0:01:34]} 0-1


[Site "https://www.chess.com"]

[Event "Titled Tuesday Blitz July 25 Early 2023"]
[White "Koellner, Ruben Gideon"]
[Black "Mmukka"]
[WhiteFideId "12993093"]
[WhiteElo "2712"]
[BlackElo "2498"]
[Result "1-0"]
[Round "8"]
[TimeControl "180+2"]
[Date "2023.07.25"]
[WhiteClock "0:01:58"]
[BlackClock "0:00:00"]
[Board "71"]

1. d4 {[%clk 0:03:00]}  d5 {[%clk 0:02:58]} 2. Nf3 {[%clk 0:03:01]}  Nf6 {[%clk 0:02:57]} 3. e3 {[%clk 0:03:00]}  e6 {[%clk 0:02:53]} 4. Nbd2 {[%clk 0:03:00]}  c5 {[%clk 0:02:44]} 5. c3 {[%clk 0:02:59]}  Nc6 {[%clk 0:02:40]} 6. Bd3 {[%clk 0:02:57]}  Be7 {[%clk 0:02:35]} 7. O-O {[%clk 0:02:57]}  O-O {[%clk 0:02:35]} 8. dxc5 {[%clk 0:02:57]}  Bxc5 {[%clk 0:02:26]} 9. b4 {[%clk 0:02:56]}  Bd6 {[%clk 0:02:21]} 10. Bb2 {[%clk 0:02:55]}  a6 {[%clk 0:02:18]} 11. a3 {[%clk 0:02:55]}  Qe7 {[%clk 0:01:42]} 12. c4 {[%clk 0:02:53]}  dxc4 {[%clk 0:01:38]} 13. Nxc4 {[%clk 0:02:53]}  Bc7 {[%clk 0:01:37]} 14. Rc1 {[%clk 0:02:52]}  Rd8 {[%clk 0:01:35]} 15. Qc2 {[%clk 0:02:52]}  h6 {[%clk 0:01:33]} 16. Rfd1 {[%clk 0:02:52]}  Bd7 {[%clk 0:01:30]} 17. Qb1 {[%clk 0:02:37]}  Be8 {[%clk 0:01:27]} 18. h3 {[%clk 0:02:34]}  Rac8 {[%clk 0:01:25]} 19. e4 {[%clk 0:02:34]}  e5 {[%clk 0:01:10]} 20. Ne3 {[%clk 0:02:33]}  Qf8 {[%clk 0:00:42]} 21. Bc4 {[%clk 0:02:25]}  b5 {[%clk 0:00:35]} 22. Bb3 {[%clk 0:02:24]}  Bb6 {[%clk 0:00:31]} 23. Nd5 {[%clk 0:02:23]}  Nxd5 {[%clk 0:00:27]} 24. exd5 {[%clk 0:02:24]}  Nd4 {[%clk 0:00:26]} 25. Nxd4 {[%clk 0:02:20]}  Rxc1 {[%clk 0:00:22]} 26. Qxc1 {[%clk 0:02:20]}  exd4 {[%clk 0:00:21]} 27. Bxd4 {[%clk 0:02:19]}  Bxd4 {[%clk 0:00:20]} 28. Rxd4 {[%clk 0:02:20]}  Qd6 {[%clk 0:00:19]} 29. Qf4 {[%clk 0:02:19]}  Qxf4 {[%clk 0:00:18]} 30. Rxf4 {[%clk 0:02:20]}  Kf8 {[%clk 0:00:18]} 31. Re4 {[%clk 0:02:18]}  f6 {[%clk 0:00:12]} 32. Kf1 {[%clk 0:02:15]}  Bf7 {[%clk 0:00:13]} 33. Rd4 {[%clk 0:02:14]}  Ke7 {[%clk 0:00:11]} 34. d6+ {[%clk 0:02:10]}  Kf8 {[%clk 0:00:11]} 35. Bc2 {[%clk 0:02:05]}  Bc4+ {[%clk 0:00:11]} 36. Ke1 {[%clk 0:02:05]}  Ke8 {[%clk 0:00:11]} 37. Kd2 {[%clk 0:02:04]}  Kd7 {[%clk 0:00:10]} 38. Bf5+ {[%clk 0:02:04]}  Kc6 {[%clk 0:00:10]} 39. Be4+ {[%clk 0:02:04]}  Kb6 {[%clk 0:00:10]} 40. Ke3 {[%clk 0:02:02]}  Be6 {[%clk 0:00:10]} 41. Kf4 {[%clk 0:02:01]}  a5 {[%clk 0:00:05]} 42. Bf5 {[%clk 0:02:00]}  Bf7 {[%clk 0:00:03]} 43. Bd3 {[%clk 0:01:56]}  axb4 {[%clk 0:00:02]} 44. axb4 {[%clk 0:01:57]}  Kc6 {[%clk 0:00:02]} 45. Be4+ {[%clk 0:01:57]}  Kb6 {[%clk 0:00:03]} 46. Kf5 {[%clk 0:01:57]}  Bg8 {[%clk 0:00:02]} 47. Kg6 {[%clk 0:01:56]}  Rd7 {[%clk 0:00:03]} 48. Bf5 {[%clk 0:01:56]}  Bf7+ {[%clk 0:00:03]} 49. Kxg7 {[%clk 0:01:56]}  Be6+ {[%clk 0:00:03]} 50. Kxf6 {[%clk 0:01:56]}  Bxf5 {[%clk 0:00:03]} 51. Kxf5 {[%clk 0:01:57]}  Kc6 {[%clk 0:00:04]} 52. Ke6 {[%clk 0:01:57]}  Rd8 {[%clk 0:00:04]} 53. d7 {[%clk 0:01:57]}  Kc7 {[%clk 0:00:00]} 54. Ke7 {[%clk 0:01:58]} 1-0


[Site "https://www.chess.com"]

[Event "Titled Tuesday Blitz July 25 Early 2023"]
[White "Lopez, Henry"]
[Black "Goltsev, Dmitry"]
[WhiteFideId "5203830"]
[BlackFideId "24176710"]
[WhiteElo "2490"]
[BlackElo "2706"]
[Result "1-0"]
[Round "8"]
[TimeControl "180+2"]
[Date "2023.07.25"]
[WhiteClock "0:01:24"]
[BlackClock "0:00:19"]
[Board "73"]

1. d4 {[%clk 0:03:00]}  Nf6 {[%clk 0:03:00]} 2. Nf3 {[%clk 0:03:00]}  e6 {[%clk 0:02:59]} 3. c4 {[%clk 0:03:00]}  b6 {[%clk 0:02:58]} 4. a3 {[%clk 0:03:00]}  Ba6 {[%clk 0:02:57]} 5. Nc3 {[%clk 0:03:00]}  Bxc4 {[%clk 0:02:54]} 6. e4 {[%clk 0:03:00]}  Bxf1 {[%clk 0:02:53]} 7. Kxf1 {[%clk 0:03:00]}  d6 {[%clk 0:02:53]} 8. h3 {[%clk 0:02:55]}  Be7 {[%clk 0:02:53]} 9. g4 {[%clk 0:02:55]}  O-O {[%clk 0:02:53]} 10. Kg2 {[%clk 0:02:55]}  c5 {[%clk 0:02:52]} 11. d5 {[%clk 0:02:54]}  exd5 {[%clk 0:02:52]} 12. exd5 {[%clk 0:02:53]}  Nbd7 {[%clk 0:02:52]} 13. Bf4 {[%clk 0:02:51]}  Re8 {[%clk 0:02:51]} 14. Re1 {[%clk 0:02:45]}  Nf8 {[%clk 0:02:51]} 15. Bg3 {[%clk 0:02:43]}  Ng6 {[%clk 0:02:51]} 16. a4 {[%clk 0:02:40]}  a6 {[%clk 0:02:50]} 17. Qd3 {[%clk 0:02:37]}  Bf8 {[%clk 0:02:28]} 18. Rxe8 {[%clk 0:02:23]}  Qxe8 {[%clk 0:02:29]} 19. Re1 {[%clk 0:02:21]}  Qd7 {[%clk 0:02:29]} 20. Re2 {[%clk 0:02:16]}  Rb8 {[%clk 0:02:22]} 21. Qxa6 {[%clk 0:02:15]}  h5 {[%clk 0:02:21]} 22. g5 {[%clk 0:02:13]}  Nh7 {[%clk 0:02:17]} 23. h4 {[%clk 0:02:13]}  Qg4 {[%clk 0:02:16]} 24. Re4 {[%clk 0:02:12]}  Qf5 {[%clk 0:02:12]} 25. Qd3 {[%clk 0:02:06]}  Re8 {[%clk 0:01:50]} 26. Qe2 {[%clk 0:02:01]}  Ra8 {[%clk 0:01:32]} 27. Nh2 {[%clk 0:01:49]}  Nxg5 {[%clk 0:01:22]} 28. hxg5 {[%clk 0:01:48]}  h4 {[%clk 0:01:23]} 29. Bxh4 {[%clk 0:01:43]}  Nf4+ {[%clk 0:01:16]} 30. Rxf4 {[%clk 0:01:41]}  Qxf4 {[%clk 0:01:17]} 31. Qg4 {[%clk 0:01:36]}  Qd2 {[%clk 0:01:15]} 32. g6 {[%clk 0:01:35]}  fxg6 {[%clk 0:01:10]} 33. Qxg6 {[%clk 0:01:35]}  Ra7 {[%clk 0:00:47]} 34. Ng4 {[%clk 0:01:34]}  Rf7 {[%clk 0:00:43]} 35. Nf6+ {[%clk 0:01:32]}  Rxf6 {[%clk 0:00:43]} 36. Bxf6 {[%clk 0:01:32]}  Qxb2 {[%clk 0:00:42]} 37. Ne4 {[%clk 0:01:25]}  Qa2 {[%clk 0:00:30]} 38. Bxg7 {[%clk 0:01:25]}  Qxd5 {[%clk 0:00:19]} 39. Bf6+ {[%clk 0:01:24]}  Bg7 {[%clk 0:00:19]} 40. Qxg7# {[%clk 0:01:24]} 1-0


[Site "https://www.chess.com"]